fUST/lending_fUST_20260127
["ID","MTS","AMOUNT","RATE_DAILY","PERIOD"]
[403718973,1769507433948,-385.6626327,0.00018082,2]
[403718974,1769507433958,-378.5669065,0.00018182,2]
[403718975,1769507433967,-639.62,0.00018268,3]
[403718976,1769507433977,-319.81,0.00018268,3]
[403718977,1769507433987,-159.9,0.00018268,3]
[403718978,1769507433996,-479.73,0.00018268,3]
[403718979,1769507434005,-155.315,0.00018277,2]
[403718980,1769507434015,-226483.73780812,0.00018278,2]
[403718981,1769507434265,-310.56638363,0.00018278,2]
[403719020,1769507438591,-1041.66666667,0.00016933,2]
[403719022,1769507438603,-557.67,0.00017801,2]
[403719024,1769507438616,-45611.62856585,0.00018278,2]
[403719026,1769507438628,-12365.14541004,0.00018278,2]
[403719027,1769507438645,-5226.1458912,0.00018278,2]
[403719028,1769507438698,-5796.68437826,0.00018278,2]
[403719029,1769507438709,-3801.66978186,0.00018278,2]
[403719030,1769507438721,-37273.56439868,0.00018278,2]
[403719095,1769507440956,-3e-08,0.00018278,2]
[403719109,1769507443789,-28.01440295,0.00018278,2]
[403719117,1769507446779,-14213.54852811,0.00018278,2]
[403719118,1769507446833,-18866.7076,0.00018278,2]
[403719122,1769507577203,500.0,0.00034866,120]
[403719123,1769507577461,529.14,0.00034866,120]
[403719124,1769507577611,500.0,0.00034866,120]
[403719125,1769507584965,500.0,0.00034866,120]
[403719126,1769507585206,500.0,0.00034866,120]
[403719127,1769507618895,500.0,0.00034866,120]
[403719128,1769507621995,500.0,0.00034866,120]
[403719129,1769507622263,500.0,0.00034866,120]
[403719130,1769507622527,500.0,0.00034866,120]
[403719131,1769507627492,500.0,0.00034866,120]
[403719132,1769507627795,500.0,0.00034866,120]
[403719133,1769507628044,500.0,0.00034866,120]
[403719134,1769507628273,500.0,0.00034866,120]
[403719135,1769507628498,500.0,0.00034866,120]
[403719136,1769507628747,180.28,0.00034866,120]
[403719137,1769507753851,500.0,0.00034866,120]
[403719138,1769507754232,500.0,0.00034866,120]
[403719139,1769507754345,500.0,0.00034866,120]
[403719140,1769507754598,500.0,0.00034866,120]
[403719141,1769507754838,500.0,0.00034866,120]
[403719142,1769507755095,202.84,0.00034866,120]
[403719143,1769507787706,500.0,0.00034866,120]
[403719144,1769507787950,500.0,0.00034866,120]
[403719145,1769507788187,346.332386,0.00034866,120]
[403719152,1769507876528,500.0,0.00034866,120]
[403719156,1769508061836,565.32669133,0.00034935,120]
[403719157,1769508063998,-300.0,0.0001327,2]
[403719158,1769508064028,-500.0,0.00013271,2]
[403719159,1769508064249,-500.0,0.00013271,2]
[403719160,1769508064278,-500.0,0.00013271,2]
[403719161,1769508064307,-500.0,0.00013271,2]
[403719162,1769508064335,-341.21167291,0.00013271,2]
[403719163,1769508064365,-500.0,0.00013271,2]
[403719164,1769508064392,-500.0,0.00013271,2]
[403719165,1769508064419,-500.0,0.00013271,2]
[403719166,1769508064449,-500.0,0.00013271,2]
[403719167,1769508064478,-80.71440636,0.00013271,2]
[403719168,1769508064597,-556.15784146,0.00013271,2]
[403719169,1769508064625,-500.0,0.00013271,2]
[403719170,1769508064654,-500.0,0.00013271,2]
[403719171,1769508064683,-500.0,0.00013271,2]
[403719172,1769508064710,-500.0,0.00013271,2]
[403719173,1769508064738,-500.0,0.00013271,2]
[403719174,1769508064765,-500.0,0.00013271,2]
[403719175,1769508064793,-500.0,0.00013271,2]
[403719176,1769508064820,-627.06131139,0.00013271,2]
[403719177,1769508064849,-133.5716943,0.00013271,2]
[403719178,1769508064954,-366.4283057,0.00013271,2]
[403719179,1769508064983,-500.0,0.00013271,2]
[403719180,1769508065013,-500.0,0.00013271,2]
[403719181,1769508065040,-500.0,0.00013271,2]
[403719182,1769508065071,-500.0,0.00013271,2]
[403719183,1769508065100,-500.0,0.00013271,2]
[403719184,1769508065129,-500.0,0.00013271,2]
[403719185,1769508065157,-500.0,0.00013271,2]
[403719186,1769508065185,-498.21410985,0.00013271,2]
[403719187,1769508065214,-500.0,0.00013271,2]
[403719188,1769508065335,-500.0,0.00013271,2]
[403719189,1769508065362,-500.0,0.00013271,2]
[403719190,1769508065391,-421.95180429,0.00013271,2]
[403719191,1769508065420,-500.0,0.00013271,2]
[403719192,1769508065448,-500.0,0.00013271,2]
[403719193,1769508065481,-500.0,0.00013271,2]
[403719194,1769508065511,-500.0,0.00013271,2]
[403719195,1769508065540,-500.0,0.00013271,2]
[403719196,1769508065568,-500.0,0.00013271,2]
[403719197,1769508065597,-500.0,0.00013271,2]
[403719198,1769508065671,-634.11552104,0.00013271,2]
[403719199,1769508065700,-500.0,0.00013271,2]
[403719200,1769508065731,-500.0,0.00013271,2]
[403719201,1769508065760,-500.0,0.00013271,2]
[403719202,1769508065790,-500.0,0.00013271,2]
[403719203,1769508065818,-500.0,0.00013271,2]
[403719204,1769508065846,-500.0,0.00013271,2]
[403719205,1769508065875,-500.0,0.00013271,2]
[403719206,1769508065903,-300.0,0.00013271,2]
[403719207,1769508065933,-300.0,0.00013271,2]
[403719208,1769508066969,-251.20359763,0.00013271,2]
[403719209,1769508066983,-356.79640237,0.00013271,2]
[403719210,1769508066993,-143.20359763,0.00013271,2]
[403719211,1769508067007,-129.78856529,0.00013271,2]
[403719212,1769508067018,-170.21143471,0.00013272,2]
[403719213,1769508067032,-300.0,0.00013272,2]
[403719214,1769508067051,-531.77895792,0.00013272,2]
[403719215,1769508067625,-10000.01,0.00013272,2]
[403719216,1769508067800,-10000.01,0.00013272,2]
[403719217,1769508068000,-10000.01,0.00013272,2]
[403719218,1769508068329,-10000.01,0.00013272,2]
[403719219,1769508084743,-1002.04039263,0.00013272,2]
[403719220,1769508084766,-7995.92921474,0.00013272,2]
[403719221,1769508122727,300.0,0.00013272,2]
[403719222,1769508176397,5000.0,0.00013273,2]
[403719223,1769508176988,500.0,0.00034935,120]
[403719224,1769508182724,300.0,0.00013272,2]
[403719226,1769508199304,4400.01,0.00013273,2]
[403719227,1769508199332,599.99,0.00013273,2]
[403719228,1769508199550,500.0,0.00034935,120]
[403719229,1769508221873,5000.0,0.00013273,2]
[403719230,1769508242738,300.0,0.00013272,2]
[403719231,1769508243927,4100.02,0.00013273,2]
[403719232,1769508243950,899.98,0.00013273,2]
[403719233,1769508266199,5000.0,0.00013273,2]
[403719234,1769508274155,187.63079526,0.00013271,2]
[403719235,1769508340596,500.0,0.00034935,120]
[403719236,1769508340868,500.0,0.00034935,120]
[403719237,1769508341130,500.0,0.00034935,120]
[403719238,1769508341352,500.0,0.00034935,120]
[403719239,1769508365053,500.0,0.00034935,120]
[403719240,1769508365283,500.0,0.00034935,120]
[403719241,1769508365546,500.0,0.00034935,120]
[403719242,1769508365793,500.0,0.00034935,120]
[403719243,1769508369844,1060.61074339,0.00034935,120]
[403719244,1769508371730,500.0,0.00034935,120]
[403719245,1769508372005,500.0,0.00034935,120]
[403719246,1769508372242,500.0,0.00034935,120]
[403719247,1769508372472,500.0,0.00034935,120]
[403719248,1769508427734,500.0,0.00034935,120]
[403719249,1769508427980,500.0,0.00034935,120]
[403719250,1769508428226,500.0,0.00034935,120]
[403719251,1769508428473,500.0,0.00034935,120]
[403719252,1769508446126,-201.74359065,0.00012664,2]
[403719253,1769508476444,500.0,0.00034935,120]
[403719254,1769508486867,-5000.0,0.00012539,2]
[403719255,1769508487888,-300.0,0.00012664,2]
[403719256,1769508487919,-500.0,0.00012665,2]
[403719257,1769508487948,-500.0,0.00012665,2]
[403719258,1769508487976,-579.0108125,0.00012665,2]
[403719259,1769508488005,-500.0,0.00012665,2]
[403719260,1769508488035,-500.0,0.00012665,2]
[403719261,1769508488064,-500.0,0.00012665,2]
[403719262,1769508488093,-500.0,0.00012665,2]
[403719263,1769508488124,-500.0,0.00012665,2]
[403719264,1769508488154,-403.00681238,0.00012665,2]
[403719265,1769508488562,-500.0,0.00012665,2]
[403719266,1769508488592,-500.0,0.00012665,2]
[403719267,1769508488622,-500.0,0.00012665,2]
[403719268,1769508488651,-500.0,0.00012665,2]
[403719269,1769508488681,-500.0,0.00012665,2]
[403719270,1769508488710,-500.0,0.00012665,2]
[403719271,1769508488738,-500.0,0.00012665,2]
[403719272,1769508488768,-500.0,0.00012665,2]
[403719273,1769508488798,-500.0,0.00012665,2]
[403719274,1769508488829,-500.0,0.00012665,2]
[403719275,1769508492587,-500.0,0.00012665,2]
[403719276,1769508492618,-500.0,0.00012665,2]
[403719277,1769508492831,-216.76909986,0.00012665,2]
[403719278,1769508492864,-500.0,0.00012665,2]
[403719279,1769508492898,-500.0,0.00012665,2]
[403719280,1769508492930,-500.0,0.00012665,2]
[403719281,1769508492960,-500.0,0.00012665,2]
[403719282,1769508492989,-331.59898509,0.00012665,2]
[403719283,1769508493023,-500.0,0.00012665,2]
[403719284,1769508493054,-500.0,0.00012665,2]
[403719285,1769508493083,-403.2738301,0.00012665,2]
[403719286,1769508510754,-5000.0,0.00012539,2]
[403719287,1769508516836,-5000.0,0.00012539,2]
[403719288,1769508553626,-5000.0,0.00012414,2]
[403719289,1769508553838,-272.92972955,0.00012477,2]
[403719290,1769508553868,-300.0,0.00012538,2]
[403719291,1769508553898,-3854.1505409,0.00012539,2]
[403719292,1769508554002,-1145.8494591,0.00012539,2]
[403719293,1769508554058,-3299.30066578,0.00012665,2]
[403719294,1769508554112,-10000.01,0.00012665,2]
[403719295,1769508557545,-10000.01,0.00012665,2]
[403719296,1769508571641,-10000.01,0.00012665,2]
[403719297,1769508586172,-5000.0,0.00012539,2]
[403719298,1769508586363,-0.01,0.00012665,2]
[403719299,1769508593824,-10000.01,0.00012665,2]
[403719337,1769508637764,-304.16874062,0.00012414,2]
[403719338,1769508637773,-5000.0,0.00012539,2]
[403719339,1769508637783,-597.0,0.00012539,2]
[403719340,1769508637794,-151.0,0.00012659,2]
[403719341,1769508637804,-190.88320984,0.00012659,2]
[403719342,1769508637814,-300.0,0.00012664,2]
[403719343,1769508637824,-6700.64933422,0.00012665,2]
[403719344,1769508637835,-96.7261699,0.00012665,2]
[403719345,1769508637846,-500.0,0.00012665,2]
[403719346,1769508637856,-500.0,0.00012665,2]
[403719347,1769508637866,-500.0,0.00012665,2]
[403719348,1769508637875,-500.0,0.00012665,2]
[403719349,1769508637884,-500.0,0.00012665,2]
[403719350,1769508637893,-500.0,0.00012665,2]
[403719351,1769508637903,-500.0,0.00012665,2]
[403719352,1769508637913,-500.0,0.00012665,2]
[403719353,1769508637922,-500.0,0.00012665,2]
[403719354,1769508637932,-500.0,0.00012665,2]
[403719355,1769508637941,-500.0,0.00012665,2]
[403719356,1769508637950,-500.0,0.00012665,2]
[403719357,1769508637960,-500.0,0.00012665,2]
[403719358,1769508637969,-500.0,0.00012665,2]
[403719359,1769508637979,-500.0,0.00012665,2]
[403719360,1769508637988,-500.0,0.00012665,2]
[403719361,1769508637997,-500.0,0.00012665,2]
[403719362,1769508638007,-500.0,0.00012665,2]
[403719363,1769508638016,-500.0,0.00012665,2]
[403719364,1769508638026,-500.0,0.00012665,2]
[403719365,1769508638035,-500.0,0.00012665,2]
[403719366,1769508638044,-500.0,0.00012665,2]
[403719367,1769508638054,-217.58843207,0.00012665,2]
[403719368,1769508638064,-500.0,0.00012665,2]
[403719369,1769508638074,-500.0,0.00012665,2]
[403719370,1769508638083,-500.0,0.00012665,2]
[403719371,1769508638093,-500.0,0.00012665,2]
[403719372,1769508638102,-484.39086583,0.00012665,2]
[403719373,1769508638111,-500.0,0.00012665,2]
[403719374,1769508638121,-500.0,0.00012665,2]
[403719375,1769508638131,-500.0,0.00012665,2]
[403719376,1769508638141,-500.0,0.00012665,2]
[403719377,1769508638150,-500.0,0.00012665,2]
[403719378,1769508638160,-500.0,0.00012665,2]
[403719379,1769508638170,-500.0,0.00012665,2]
[403719380,1769508638183,-450.92189868,0.00012665,2]
[403719381,1769508638192,-500.0,0.00012665,2]
[403719382,1769508638201,-500.0,0.00012665,2]
[403719383,1769508638210,-500.0,0.00012665,2]
[403719384,1769508638219,-500.0,0.00012665,2]
[403719385,1769508638229,-500.0,0.00012665,2]
[403719386,1769508638238,-500.0,0.00012665,2]
[403719387,1769508638248,-500.0,0.00012665,2]
[403719388,1769508638259,-500.0,0.00012665,2]
[403719389,1769508638269,-500.0,0.00012665,2]
[403719390,1769508638278,-500.0,0.00012665,2]
[403719391,1769508638288,-500.0,0.00012665,2]
[403719392,1769508638298,-500.0,0.00012665,2]
[403719393,1769508638307,-500.0,0.00012665,2]
[403719394,1769508638317,-500.0,0.00012665,2]
[403719395,1769508638326,-500.0,0.00012665,2]
[403719396,1769508638335,-500.0,0.00012665,2]
[403719397,1769508638345,-500.0,0.00012665,2]
[403719398,1769508638354,-500.0,0.00012665,2]
[403719399,1769508638367,-413.06538134,0.00012665,2]
[403719400,1769508638377,-500.0,0.00012665,2]
[403719401,1769508638387,-500.0,0.00012665,2]
[403719402,1769508638396,-76884.9668923,0.00012666,2]
[403719403,1769508638406,-504.91803041,0.00013271,2]
[403719404,1769508638421,-500.0,0.00013273,2]
[403719405,1769508638432,-337.47725408,0.00013273,2]
[403719406,1769508638441,-500.0,0.00013273,2]
[403719407,1769508638451,-501.50463274,0.00013273,2]
[403719408,1769508638461,-264.83719499,0.00013273,2]
[403719409,1769508638471,-284.04326702,0.00013273,2]
[403719410,1769508638480,-500.0,0.00013273,2]
[403719411,1769508638490,-500.0,0.00013273,2]
[403719412,1769508638499,-500.0,0.00013273,2]
[403719413,1769508638509,-500.0,0.00013273,2]
[403719414,1769508638519,-500.0,0.00013273,2]
[403719415,1769508638528,-500.0,0.00013273,2]
[403719416,1769508638537,-500.0,0.00013273,2]
[403719417,1769508638547,-500.0,0.00013273,2]
[403719418,1769508638556,-500.0,0.00013273,2]
[403719419,1769508638567,-500.0,0.00013273,2]
[403719420,1769508638576,-500.0,0.00013273,2]
[403719421,1769508638586,-500.0,0.00013273,2]
[403719422,1769508638596,-500.0,0.00013273,2]
[403719423,1769508638605,-500.0,0.00013273,2]
[403719424,1769508638615,-500.0,0.00013273,2]
[403719425,1769508638624,-500.0,0.00013273,2]
[403719426,1769508638634,-500.0,0.00013273,2]
[403719427,1769508638643,-300.0,0.00013534,2]
[403719428,1769508638653,-300.0,0.00013534,2]
[403719429,1769508638663,-300.0,0.00013534,2]
[403719430,1769508638673,-300.0,0.00013534,2]
[403719431,1769508638683,-300.0,0.00013534,2]
[403719432,1769508638692,-300.0,0.00013534,2]
[403719433,1769508638701,-300.0,0.00013534,2]
[403719434,1769508638710,-300.0,0.00013534,2]
[403719435,1769508638720,-300.0,0.00013534,2]
[403719436,1769508638729,-300.0,0.00013534,2]
[403719437,1769508638738,-300.0,0.00013534,2]
[403719438,1769508638748,-300.0,0.00013534,2]
[403719439,1769508638758,-300.0,0.00013534,2]
[403719440,1769508638768,-300.0,0.00013534,2]
[403719441,1769508638777,-300.0,0.00013534,2]
[403719442,1769508638786,-300.0,0.00013673,2]
[403719443,1769508638796,-500.0,0.00013698,2]
[403719444,1769508638805,-500.0,0.00013699,2]
[403719445,1769508638814,-500.0,0.00013699,2]
[403719446,1769508638823,-500.0,0.00013699,2]
[403719447,1769508638833,-194.72932748,0.00013699,2]
[403719448,1769508638842,-500.0,0.00013699,2]
[403719449,1769508638851,-500.0,0.00013699,2]
[403719450,1769508638860,-500.0,0.00013699,2]
[403719451,1769508638870,-348.473489,0.00013699,2]
[403719452,1769508638880,-500.0,0.00013699,2]
[403719453,1769508638890,-500.0,0.00013699,2]
[403719454,1769508638900,-500.0,0.00013699,2]
[403719455,1769508638910,-610.42597811,0.00013699,2]
[403719456,1769508638920,-500.0,0.00013699,2]
[403719457,1769508638929,-500.0,0.00013699,2]
[403719458,1769508638939,-500.0,0.00013699,2]
[403719459,1769508638950,-603.02448987,0.00013699,2]
[403719460,1769508638960,-500.0,0.00013699,2]
[403719461,1769508638970,-500.0,0.00013699,2]
[403719462,1769508638980,-500.0,0.00013699,2]
[403719463,1769508638990,-500.0,0.00013699,2]
[403719464,1769508639001,-500.0,0.00013699,2]
[403719465,1769508639010,-500.0,0.00013699,2]
[403719466,1769508639020,-500.0,0.00013699,2]
[403719467,1769508639030,-500.0,0.00013699,2]
[403719468,1769508639039,-500.0,0.00013699,2]
[403719469,1769508639049,-500.0,0.00013699,2]
[403719470,1769508639059,-500.0,0.00013699,2]
[403719471,1769508639069,-500.0,0.00013699,2]
[403719472,1769508639079,-189.84594669,0.00013699,2]
[403719473,1769508639088,-600.0,0.00013804,2]
[403719474,1769508639098,-1000.0,0.00013821,2]
[403719475,1769508639108,-500.0,0.00013821,2]
[403719476,1769508639118,-1000.0,0.00013821,2]
[403719477,1769508639128,-1000.0,0.00013821,2]
[403719478,1769508639138,-1000.0,0.00013821,2]
[403719479,1769508639148,-1000.0,0.00013821,2]
[403719480,1769508639157,-1000.0,0.00013821,2]
[403719481,1769508639167,-326.82804362,0.00013821,2]
[403719482,1769508639178,-371.28937045,0.00013821,2]
[403719483,1769508639187,-1000.0,0.00013821,2]
[403719484,1769508639197,-1000.0,0.00013821,2]
[403719485,1769508639207,-1000.0,0.00013821,2]
[403719486,1769508639216,-1000.0,0.00013821,2]
[403719487,1769508639227,-1000.0,0.00013821,2]
[403719488,1769508639236,-1004.79261489,0.00013821,2]
[403719489,1769508639247,-420.0,0.00013893,2]
[403719490,1769508639258,-600.0,0.00014221,2]
[403719491,1769508639268,-344.14797869,0.00014247,2]
[403719492,1769508639277,-1000.0,0.00014247,2]
[403719493,1769508639286,-675.70742984,0.00014247,2]
[403719494,1769508639295,-1000.0,0.00014247,2]
[403719495,1769508639305,-1000.0,0.00014247,2]
[403719496,1769508639314,-976.55877196,0.00014247,2]
[403719497,1769508639324,-1000.0,0.00014247,2]
[403719498,1769508639333,-500.0,0.00014247,2]
[403719500,1769508639342,-1000.0,0.00014247,2]
[403719502,1769508639351,-1000.0,0.00014247,2]
[403719504,1769508639360,-158.68078088,0.00014247,2]
[403719506,1769508639370,-1000.0,0.00014247,2]
[403719508,1769508639380,-1000.0,0.00014247,2]
[403719510,1769508639389,-500.0,0.00014247,2]
[403719513,1769508639399,-617.40899688,0.00014247,2]
[403719515,1769508639410,-984.5242166,0.00014247,2]
[403719517,1769508639420,-1000.0,0.00014247,2]
[403719519,1769508639431,-801.56130493,0.00014247,2]
[403719521,1769508639442,-1000.0,0.00014247,2]
[403719523,1769508639453,-1000.0,0.00014247,2]
[403719525,1769508639463,-498.54806363,0.00014247,2]
[403719527,1769508639473,-1000.0,0.00014247,2]
[403719528,1769508639484,-1000.0,0.00014247,2]
[403719529,1769508639494,-1500.0,0.00014368,2]
[403719531,1769508639503,-1500.0,0.00014368,2]
[403719533,1769508639512,-1500.0,0.00014368,2]
[403719535,1769508639521,-1500.0,0.00014368,2]
[403719537,1769508639530,-1500.0,0.00014368,2]
[403719539,1769508639539,-1500.0,0.00014368,2]
[403719541,1769508639548,-1500.0,0.00014368,2]
[403719543,1769508639557,-1500.0,0.00014368,2]
[403719544,1769508639566,-833.60544809,0.00014368,2]
[403719545,1769508639575,-1500.0,0.00014368,2]
[403719546,1769508639584,-1500.0,0.00014368,2]
[403719547,1769508639593,-159.906773,0.00014407,2]
[403719548,1769508639603,-322.05708086,0.00014477,2]
[403719549,1769508639612,-900.0,0.00014768,2]
[403719550,1769508639621,-1500.0,0.00014795,2]
[403719551,1769508639630,-1500.0,0.00014795,2]
[403719552,1769508639639,-433.66109963,0.00014795,2]
[403719553,1769508639648,-1500.0,0.00014795,2]
[403719554,1769508639657,-1500.0,0.00014795,2]
[403719555,1769508639666,-1500.0,0.00014795,2]
[403719556,1769508639676,-1500.0,0.00014795,2]
[403719557,1769508639685,-1032.3582484,0.00014795,2]
[403719558,1769508639697,-1500.0,0.00014795,2]
[403719559,1769508639706,-944.83278886,0.00014795,2]
[403719560,1769508639715,-336.4468968,0.00014795,2]
[403719561,1769508639724,-1008.31156326,0.00014795,2]
[403719562,1769508639734,-1500.0,0.00014795,2]
[403719563,1769508639743,-1000.0,0.00014916,2]
[403719564,1769508639752,-453.8717795,0.00014916,2]
[403719565,1769508639761,-500.0,0.00014916,2]
[403719566,1769508639771,-333.60184896,0.00014916,2]
[403719567,1769508639781,-500.0,0.00014916,2]
[403719568,1769508639790,-2000.0,0.00014916,2]
[403719569,1769508639800,-500.0,0.00014916,2]
[403719570,1769508639810,-1328.85776734,0.00014916,2]
[403719571,1769508639819,-485.30085207,0.0001499,2]
[403719572,1769508639828,-2674.60743027,0.0001499,2]
[403719573,1769508639838,-497.75872377,0.0001499,2]
[403719574,1769508639847,-720.0,0.00015184,2]
[403719575,1769508639856,-318.0,0.00015241,2]
[403719576,1769508639866,-300.0,0.00015316,2]
[403719583,1769508640052,-222.66874224,0.00015342,2]
[403719584,1769508640062,-1000.0,0.00015342,2]
[403719585,1769508640072,-1500.0,0.00015342,2]
[403719586,1769508640082,-868.18575539,0.00015342,2]
[403719587,1769508640091,-1000.0,0.00015464,2]
[403719588,1769508640100,-2773.56790519,0.00015538,2]
[403719589,1769508640109,-689.15,0.000158,2]
[403719590,1769508640118,-306.74,0.000159,2]
[403719591,1769508640128,-306.74,0.000159,2]
[403719592,1769508640138,-306.74,0.000159,2]
[403719593,1769508640147,-306.74,0.000159,2]
[403719594,1769508640157,-306.74,0.000159,2]
[403719595,1769508640167,-306.74,0.000159,2]
[403719596,1769508640181,-456.7,0.000159,2]
[403719597,1769508640191,-150.0,0.00016,2]
[403719598,1769508640201,-513.19255158,0.0001622,2]
[403719599,1769508640210,-562.12384503,0.0001622,7]
[403719600,1769508640219,-1030.3702587,0.0001622,2]
[403719601,1769508640228,-520.91239791,0.0001622,2]
[403719602,1769508640237,-173.23,0.00016418,3]
[403719603,1769508640247,-692.92,0.00016428,3]
[403719604,1769508640256,-346.46,0.00016428,3]
[403719605,1769508640265,-250.0,0.00016438,2]
[403719606,1769508640275,-597.36308132,0.00016438,2]
[403719607,1769508640285,-371.18443218,0.00016476,2]
[403719608,1769508640294,-446.86813343,0.00016496,2]
[403719609,1769508640305,-804.36264018,0.00016496,2]
[403719610,1769508640314,-1429.97802698,0.00016496,2]
[403719611,1769508640324,-489.16219971,0.00016496,2]
[403719612,1769508640333,-880.49195947,0.00016496,2]
[403719613,1769508640343,-1565.31903906,0.00016496,2]
[403719614,1769508640355,-2445.81099853,0.00016496,2]
[403719615,1769508640365,-550.57,0.00016581,2]
[403719616,1769508640374,-864.0,0.00016702,2]
[403719617,1769508640383,-513.42661301,0.00017073,2]
[403719618,1769508640392,-1101.14,0.0001737,2]
[403719619,1769508640403,-444.92793329,0.00017391,2]
[403719620,1769508640412,-800.87027992,0.00017391,2]
[403719621,1769508640421,-1423.76938653,0.00017391,2]
[403719622,1769508640431,-451.6208895,0.00017391,2]
[403719623,1769508640440,-812.91760109,0.00017391,2]
[403719624,1769508640449,-1445.18684638,0.00017391,2]
[403719625,1769508640459,-160.0,0.00017508,3]
[403719626,1769508640469,-194.6577276,0.00017534,2]
[403719627,1769508640480,-194.6577276,0.00017534,2]
[403719628,1769508640489,-194.6577276,0.00017534,2]
[403719629,1769508640498,-194.6577276,0.00017534,2]
[403719630,1769508640507,-194.164696,0.00017534,2]
[403719631,1769508640518,-194.6577276,0.00017534,2]
[403719632,1769508640528,-194.1799213,0.00017534,2]
[403719633,1769508640540,-194.6577276,0.00017556,2]
[403719634,1769508640549,-346.46,0.00017788,3]
[403719635,1769508640560,-1385.84,0.00017798,3]
[403719636,1769508640570,-692.92,0.00017798,3]
[403719637,1769508640580,-151.0,0.000179,2]
[403719638,1769508640591,-151.0,0.00018,2]
[403719639,1769508640601,-151.0,0.000181,2]
[403719640,1769508640610,-1651.71,0.0001816,2]
[403719641,1769508640620,-173.23,0.00018168,3]
[403719642,1769508640629,-151.0,0.00018178,2]
[403719643,1769508640638,-151.0,0.00018178,2]
[403719644,1769508640648,-725.961314,0.00018178,2]
[403719645,1769508640658,-725.961314,0.00018178,2]
[403719646,1769508640668,-725.961314,0.00018178,2]
[403719647,1769508640677,-725.961314,0.00018178,2]
[403719648,1769508640687,-226.2233588,0.00018178,2]
[403719649,1769508640697,-421683.32138688,0.00018178,2]
[403719650,1769508640736,-578316.67861312,0.00018178,2]
[403719651,1769508640746,-194.6577276,0.00018178,2]
[403719652,1769508640756,-487.0,0.00018178,2]
[403719653,1769508640766,-487.0,0.00018178,2]
[403719654,1769508640777,-487.0,0.00018178,2]
[403719655,1769508640787,-487.0,0.00018178,2]
[403719656,1769508640796,-487.0,0.00018178,2]
[403719657,1769508640808,-487.0,0.00018178,2]
[403719658,1769508640818,-487.0,0.00018178,2]
[403719659,1769508640828,-487.0,0.00018178,2]
[403719660,1769508640840,-487.0,0.00018178,2]
[403719661,1769508640849,-947.27,0.00018178,2]
[403719662,1769508640859,-1041.66666667,0.00018257,2]
[403719663,1769508640869,-194.6577276,0.00018278,2]
[403719664,1769508640878,-151.0,0.000183,2]
[403719665,1769508640888,-151.0,0.000183,2]
[403719666,1769508640897,-487.35041039,0.00018306,2]
[403719667,1769508640907,-877.23073871,0.00018306,2]
[403719668,1769508640916,-1559.52131326,0.00018306,2]
[403719669,1769508640925,-1000.0,0.00018373,2]
[403719670,1769508640934,-151.0,0.000184,2]
[403719671,1769508640943,-420.3117835,0.00018476,2]
[403719672,1769508640952,-151.0,0.000186,2]
[403719673,1769508640965,-284.15615338,0.00018652,2]
[403719674,1769508640974,-152.93513985,0.00018652,2]
[403719675,1769508640984,-500.0,0.00018652,2]